Cogmind - Beta 10.2 @@@ ROGUE MODE // 2021.04.15 @ 01:28:40 // AFD2021/Volatile Player: Judas Result: Destroyed by L-31 Rogue with Katana Performance ------------- Evolutions (1) 500 Regions Visited (2) 400 Robots Destroyed (15) 75 Value Destroyed (395) 395 Prototype IDs (1) 20 Alien Tech Used (0) 0 Bonus (0) 0 TOTAL SCORE: 1390 Bonus ------- None Cogmind --------- Core Integrity 0/400 Matter 280/300 Energy 32/100 System Corruption 5% Temperature Cool (9) Movement Core (100) Ox1 Location -9/Materials Parts ------- > --- POWER (1) -------- (None) > --- PROPULSION (2) --- (None) > --- UTILITY (3) ------ (None) > --- WEAPON (3) ------- Beam Rifle Mining Laser > --- INVENTORY (4) ---- Disposable Heat Sink Signal Interpreter Terrain Scan Processor Armor Integrity Analyzer Peak State ------------ > --- POWER ------------ Light Ion Engine > --- PROPULSION ------- Aluminum Leg Aluminum Leg > --- UTILITY ---------- Small Storage Unit Small Storage Unit Improved Sensor Array > --- WEAPON ----------- Medium Laser Beam Cannon Assault Rifle > --- INVENTORY -------- Light Ion Engine Light Treads Light Treads Disposable Heat Sink Signal Interpreter Armor Integrity Analyzer Shield Generator [Rating: 11] Favorites ----------- Power Light Ion Engine Engine Light Ion Engine Propulsion Aluminum Leg Treads Light Treads Leg Aluminum Leg Utility Small Storage Unit Device Improved Sensor Array Storage Small Storage Unit Weapon Medium Laser Energy Gun Medium Laser Energy Cannon Beam Cannon Ballistic Gun Assault Rifle Special Weapon Mining Laser Build | -11 -10 -9 ------- Run | Scr Mat Mat Slots Evolved 2 | . . 2 Power . | . . . Propulsion . | . . . Utility 1 | . . 1 Weapon 1 | . . 1 Parts Attached 14 | 1 2 11 Power 1 | . . 1 Engine 1 | . . 1 Core . | . . . Reactor . | . . . Propulsion 2 | . . 2 Treads 2 | . . 2 Leg . | . . . Wheel . | . . . Hover . | . . . Flight . | . . . Utility 2 | 1 . 1 Device 1 | . . 1 Storage 1 | 1 . . Processor . | . . . Hackware . | . . . Protection . | . . . Artifact . | . . . Weapon 9 | . 2 7 Energy Gun 3 | . 1 2 Energy Cannon 3 | . 1 2 Ballistic Gun 2 | . . 2 Ballistic Cannon . | . . . Launcher . | . . . Special Weapon 1 | . . 1 Impact Weapon . | . . . Slashing Weapon . | . . . Piercing Weapon . | . . . Special Melee Weapon . | . . . Unidentified Prototypes 1 | . . 1 Parts Lost 11 | . . 11 Power 2 | . . 2 Propulsion 2 | . . 2 Utility 1 | . . 1 Weapon 6 | . . 6 Highest Loss Streak 7 | . . 7 Average Slot Usage (%) 75 | . 100 54 Engine 9 | . 14 6 Treads 3 | . . 6 Leg 17 | . 28 7 Device 2 | . . 4 Storage 21 | . 28 14 Energy Gun 14 | . 25 3 Energy Cannon 3 | . 2 4 Ballistic Gun 2 | . . 5 Naked Turns 43 | . . 43 Heaviest Build 19 | 13 16 19 Greatest Support 40 | 20 20 40 Greatest Overweight (x) 1 | . . 1 Average Overweight (x) . | . . . Largest Inventory Capacity 8 | 8 8 8 Average Capacity 7 | 6 8 6 Most Carried 8 | 6 8 8 Average Carried 6 | 6 7 5 Final Capacity 8 | 8 8 4 Final Carried 8 | 6 8 4 Class Distribution -------------------- 84% | Mutant 15% | Skirmisher Dominant Class ---------------- Mutant | -10/Materials Mutant | -9/Materials Resources | -11 -10 -9 ----------- Run | Scr Mat Mat Matter Collected 329 | 210 10 109 Remotely . | . . . Salvage Created 621 | 55 188 378 Parts 24 | 2 6 16 Haulers Intercepted . | . . . Recyclers Shooed . | . . . Parts Field Recycled . | . . . Retrieved Matter . | . . . Parts Self-Destructed . | . . . Prevented . | . . . Kills | -11 -10 -9 ------- Run | Scr Mat Mat Combat Hostiles Destroyed 12 | . 2 10 Guns 7 | . 2 5 Cannons 1 | . . 1 AOE 4 | . . 4 Classes Destroyed 5 | 1 2 2 Recycler 2 | 1 1 . Watcher 1 | . 1 . Swarmer 4 | . . 4 Grunt 7 | . 2 5 Brawler 1 | . . 1 Best Kill Streak 5 | 1 2 5 Combat Bots Only 5 | . 2 5 Max Kills in Single Turn 3 | 1 2 3 Gunslinging . | . . . Exploded 3 | . . 3 Melee . | . . . Uniques/NPCs Destroyed . | . . . Combat | -11 -10 -9 -------- Run | Scr Mat Mat Damage Taken 1539 | . 253 1286 Core 525 | . 103 422 Absorbed by Shields . | . . . Core Remaining (%) 79 | 100 58 . Volleys Fired 44 | 4 11 29 Largest 3 | 2 2 3 Hottest 156 | 80 90 156 Shots Fired 69 | 8 22 39 Gun 57 | 8 22 27 Cannon 11 | . . 11 Launcher . | . . . Special 1 | . . 1 Kinetic 19 | . . 19 Thermal 50 | 8 22 20 Explosive . | . . . Electromagnetic . | . . . Robot Hit Streak 8 | 3 5 8 Robot Miss Streak 5 | 1 3 5 Penetration Max . | . . . Secondary Targets 1 | . 1 . Max Gunslinging Chain 1 | . 1 . Shots Hit Robots 45 | 5 11 29 Core Hits 27 | 2 6 19 Critical Hits . | . . . Critical Kills . | . . . Critical Parts Destroyed . | . . . Melee Attacks . | . . . Impact . | . . . Slashing . | . . . Piercing . | . . . Sneak Attacks . | . . . Combat Hostiles . | . . . Follow-up Attacks . | . . . Damage Inflicted 1147 | 65 381 701 Guns 447 | 33 153 261 Cannons 158 | . . 158 Explosions 517 | 32 228 257 Melee . | . . . Ramming 1 | . . 1 Kinetic 195 | . . 195 Thermal 651 | 33 331 287 Explosive 39 | 32 . 7 Electromagnetic 261 | . 50 211 Impact . | . . . Slashing . | . . . Piercing . | . . . Highest Corruption 5 | . 1 5 Average Corruption 2 | . 1 4 Corruption Purged . | . . . Effects 5 | . 1 4 Message Errors 2 | . 1 1 Matter Fused 2 | . . 2 Energy Discharges 1 | . . 1 Overload Shots . | . . . Overflow Damage 116 | 2 95 19 Projectiles 9 | . . 9 Explosions 107 | 2 95 10 Melee . | . . . Knockbacks . | . . . Impact . | . . . Kinetic . | . . . Secondary . | . . . Self-Inflicted Damage 224 | . 120 104 Shots 10 | . 3 7 Rammed 2 | . . 2 Targets Rammed 2 | . . 2 Kicked . | . . . Crushed . | . . . Highest Temperature 276 | 72 276 264 Average Temperature 85 | 38 105 79 Received Heat Transfer 495 | . 72 423 Siege Activations . | . . . Robots Corrupted . | . . . Combat Hostiles . | . . . Parts Fried . | . . . Impact Corruptions . | . . . Robots Melted . | . . . Combat Hostiles . | . . . Parts Melted . | . . . Heat Transferred 1118 | 75 484 559 Parts Sabotaged . | . . . Parts Stolen . | . . . Parts Stripped . | . . . Power Chain Reactions . | . . . Missiles Intercepted . | . . . Alert | -11 -10 -9 ------- Run | Scr Mat Mat Peak Influence . | . . . Initial 68 | . 3 68 Average . | . . . Maximum Alert Level 1 | . . 1 Low Security (%) 90 | 100 100 80 Level 1 9 | . . 19 Level 2 . | . . . Level 3 . | . . . Level 4 . | . . . Level 5 . | . . . High Security . | . . . Max Security . | . . . Squads Dispatched 2 | . 1 1 Investigation 2 | . 1 1 Extermination . | . . . Reinforcement . | . . . Assault . | . . . Garrison . | . . . Intercept . | . . . Construction Impeded . | . . . Haulers Reinforced . | . . . Stealth | -11 -10 -9 --------- Run | Scr Mat Mat Distress Signals 2 | . . 2 Communications Jammed . | . . . Distress Signals . | . . . Times Spotted 23 | . 5 18 Peak Tracking Total 7 | . 2 7 Tactical Retreats 1 | . . 1 Traps | -11 -10 -9 ------- Run | Scr Mat Mat Traps Triggered 1 | . 1 . Indirectly . | . . . Trap Hack Attempts . | . . . Triggered . | . . . Disarmed . | . . . Reprogrammed . | . . . Reused . | . . . Traps Extracted . | . . . Installed . | . . . Triggered . | . . . Machines | -11 -10 -9 ---------- Run | Scr Mat Mat Machines Disabled 4 | . 1 3 Max in Single Turn 1 | . 1 1 Machines Sabotaged . | . . . Garrisons Compromised . | . . . Overloaded Fab Kills . | . . . Fab Network Shutdowns . | . . . Hacking | -11 -10 -9 --------- Run | Scr Mat Mat Machines Accessed 5 | . 3 2 Terminals 5 | . 3 2 Fabricators . | . . . Repair Stations . | . . . Recycling Units . | . . . Scanalyzers . | . . . Garrison Access . | . . . Total Hacks 12 | . 6 6 Successful 6 | . 3 3 Failed 6 | . 3 3 Catastrophic 2 | . 2 . Database Lockouts . | . . . Manual 13 | . 6 7 Terminals 12 | . 6 6 Fabricators . | . . . Repair Stations . | . . . Recycling Units . | . . . Scanalyzers . | . . . Garrison Access . | . . . Terminal Hacks 2 | . 1 1 Robot Analysis 2 | . 1 1 Fabricator Hacks . | . . . Repair Station Hacks . | . . . Recycling Unit Hacks . | . . . Scanalyzer . | . . . Garrison Access Hacks . | . . . Unauthorized Hacks 4 | . 2 2 Terminals 4 | . 2 2 Botnet 4 | . 2 2 Fabricators . | . . . Repair Stations . | . . . Recycling Units . | . . . Scanalyzers . | . . . Garrison Access . | . . . Data Cores Recovered . | . . . Used . | . . . Hacking Detections 4 | . 2 2 Full Trace Events 2 | . 1 1 Feedback Events 1 | . 1 . Corruption 1 | . 1 . Feedback Blocked . | . . . Robot Schematics Acquired . | . . . Robots Built . | . . . Matter . | . . . Time . | . . . Total Robot Build Rating . | . . . Part Schematics Acquired . | . . . Parts Built . | . . . Matter . | . . . Time . | . . . Total Part Build Rating . | . . . Parts Repaired . | . . . Time . | . . . Parts Recycled . | . . . Recycled Matter . | . . . Retrieved Matter . | . . . Retrieved Components . | . . . Parts Scanalyzed . | . . . Part Schematics Acquired . | . . . Parts Damaged . | . . . Bothacking | -11 -10 -9 ------------ Run | Scr Mat Mat Used RIF Installer . | . . . Robots Hacked . | . . . Non-combat . | . . . Combat . | . . . Robot Hacks Applied . | . . . Relay Couplers Released . | . . . Robots Rewired . | . . . Allies Hacked . | . . . Hacks Repelled . | . . . Allies | -11 -10 -9 -------- Run | Scr Mat Mat Total Allies . | . . . Largest Group . | . . . Highest-Rated Group . | . . . Highest-Rated Ally . | . . . Total Orders . | . . . Ally Attacks . | . . . Total Damage . | . . . Kills . | . . . Allies Corrupted . | . . . Allies Melted . | . . . Intel | -11 -10 -9 ------- Run | Scr Mat Mat Robot Analysis Total 2 | . 1 1 Derelict Logs Recovered . | . . . Drone Launches . | . . . Drone Recoveries . | . . . Exploration | -11 -10 -9 ------------- Run | Scr Mat Mat Turns Passed 561 | 30 249 282 Spaces Moved 401 | 14 172 215 Core 120 | . . 120 Treads 33 | . . 33 Legs 248 | 14 172 62 Wheels . | . . . Hover . | . . . Flight . | . . . Fastest Speed 50 | 120 120 50 Average Speed 102 | 120 120 87 Slowest Speed 160 | 120 120 160 Overloaded Moves . | . . . Propulsion Burnouts . | . . . Robots Hopped . | . . . Cave-ins Triggered . | . . . Exploration Rate (%) 19 | 3 28 27 Regions Visited 2 Branch Regions . Pre-discovered Areas . | . . . Known Exits Taken . | . . . Unknown Exits Taken 2 | 1 1 . Scrap Searched . | . . . Spaces Dug . | . . . Terrain Destroyed 100 | 6 75 19 Melee . | . . . Projectile . | . . . AOE 100 | 6 75 19 Terrain Rammed . | . . . Walls Destroyed . | . . . Machines Disabled . | . . . Actions | -11 -10 -9 --------- Run | Scr Mat Mat Total 482 | 18 193 271 Wait 7 | . . 7 Move 399 | 13 171 215 Hop . | . . . Pick Up 7 | . 5 2 Fast Attach 8 | 1 1 6 Attach 5 | . . 5 Detach . | . . . Swap 1 | . 1 . Drop 9 | . 4 5 Fire 44 | 4 11 29 Melee . | . . . Ram 2 | . . 2 Kick . | . . . Crush . | . . . Escape Stasis . | . . . Rewire . | . . . Trap . | . . . Miscellaneous . | . . . Route ------- -11/Scrapyard -10/Materials -9/Materials (discovered 1 exit: [*Min]) History --------- Turn | Location | Event 10 | -11/Scrapyard | Discovered new exit (range 2) 31 | -11/Scrapyard | Entered Materials 270 | -10/Materials | Discovered new exit (range 8) 280 | -10/Materials | Entered another Materials area 280 | -9/Materials | Evolved 2 slots: Utility x1, Weapon x1 443 | -9/Materials | Lost 7 parts (1p2n1u3w) 478 | -9/Materials | Core integrity fell below 50% 508 | -9/Materials | Core integrity fell below 20% 530 | -9/Materials | Discovered new exit (range 8) 562 | -9/Materials | Destroyed by L-31 Rogue with Katana Last Messages --------------- 00516_ G-34 Mercenary destroyed. 00516_ Lgt. Assault Rifle destroyed. 00516_ Destroyed Lgt. Assault Rifle. 00516_ Spread Laser destroyed. 00516_ Destroyed Spread Laser. 00519_ Acquired 30 matter. 00530_ EXIT=FOUND 00531_ T-07 Excavator is excavating. 00533_ Acquired Mining Laser. 00535_ T-07 Excavator is excavating. 00547_ Connecting with Terminal... >>Trojan(Botnet) Trojan loaded successfully. Testing... Terminal linked with 0 systems. Awaiting botnet instructions. 00547_ ALERT: Suspicious activity at Terminal M010. Dispatching Investigation squad. 00553_ Acquired Beam Rifle. 00555_ Electrolysis Chamber disabled. Map ----- +----------------------------------------------------+ | ! # " ""######### #?# #????????????????? | | # #?#######+### #????????????????? | | # ### # ###??????????????? | | ######### * + # # #??????????????? | | ????????# ### + #??????????????? | | ????????# #?# # ##???????????????? | | ????????# ##?########### ##???????????????? | | ????????########?????????#""" #???????????????? | | ?????????????????????????#" #???????????????? | | ?????????????????????????#" #???????????????? | | ?????????????????????????#"" < #???????????????? | | ?????????????????????????#"! #???????????????? | | ?????????????????????????#" #???????????????? | | ????????###########??????#""" #???????????????? | | ????????# ########### ##???????????????? | | ????????# # ##### #?????"??????????? | | ????????# # ## """??????????? | | ##??????# ! + T + """??????????? | | +??????# # ## #??????? | | #??????# # ##g######??########??????? | | #??????# ## ## #?????????????????? | | #??????# ## ## """ #?????????????????? | | #??????############ ## "" #?????????????????? | | ## #????????????# + """ #?????????????????? | | #????????????# ##l #?????????????????? | | ### #????????????# ##@ #?????????????????? | | ???? ##????????????# #########?????????????????? | | ?????#?????????????+ #?????????????????????????? | | ???????????????????# #?????????????????????????? | | ???????????????????# #?????????????????????????? | | ??????????????????? ?????????????????????????? | | ??????????????????? ?????????????????????????? | | ??????????????????? ?????????????????????????? | | ??????????????????? ?????????????????????????? | | ?????????????????????????????????????????????????? | | ?????????????????????????????????????????????????? | | ?????????????????????????????????????????????????? | | ?????????????????????????????????????????????????? | | ?????????????????????????????????????????????????? | | ?????????????????????????????????????????????????? | | ?????????????????????????????????????????????????? | | ?????????????????????????????????????????????????? | | ?????????????????????????????????????????????????? | | ?????????????????????????????????????????????????? | | ?????????????????????????????????????????????????? | | ?????????????????????????????????????????????????? | | ?????????????????????????????????????????????????? | | ?????????????????????????????????????????????????? | | ?????????????????????????????????????????????????? | | ?????????????????????????????????????????????????? | +----------------------------------------------------+ Best States ------------- Heat Dissipation 28 Energy Generation 10 Energy Capacity 125 Matter Stores 300 Matter Capacity 300 Sight Range 16 Robot Scan Range 13 Terrain Scan Density 10 Evasion (%) 50 Recoil Reduction 2 Item Schematics ----------------- None Robot Schematics ------------------ None Fabricated ------------ Nothing Alien Tech Used ----------------- None Achievements -------------- None Challenges ------------ None Game ------ Seed CryofiberRefineryInsulator Manual? 0 Play Time 00:15:08 Cumulative 92.4 hours Start 2021.04.15 @ 00:46:20 End 2021.04.15 @ 01:28:40 Sessions 1 Manual Loads 0 Difficulty Rogue Special Mode AFD2021/Volatile Game No. 161 Rogue 156 Adventurer 0 Explorer 5 Win Type - Total 0 Types 0/0/0/0/0/0/0/0/0 Lore% 40 Gallery% 55 Achievement% 42 Wizard Run 0 Options --------- ASCII 0 Keyboard 0 Movement Mouse Keybinds 0 Fullscreen 2 Font 18/Smallcaps Map View 76x50 Tactical HUD 1 Map Filters NONE Filters NONE Steam 1 RUN: 6737b2bb-bc81-4e8a-90fd-0de3e6eebaef